[Event "Titled Tuesday Blitz July 20 2021"]
[White "Manzone, Alessandro"]
[Black "Silich, Yahor"]
[WhiteFideId "112488"]
[BlackFideId "13513656"]
[WhiteElo "2327"]
[BlackElo "2142"]
[Result "0-1"]
[Round "09"]
[TimeControl "180+1"]
[Date "2021.07.21"]
[WhiteClock "0:00:11"]
[BlackClock "0:00:05"]

1. d4 {[%clk 0:03:00]}  Nf6 {[%clk 0:02:59]} 2. c4 {[%clk 0:03:00]}  g6 {[%clk 0:02:58]} 3. Nc3 {[%clk 0:03:00]}  Bg7 {[%clk 0:02:58]} 4. Nf3 {[%clk 0:02:59]}  d6 {[%clk 0:02:57]} 5. g3 {[%clk 0:02:59]}  O-O {[%clk 0:02:57]} 6. Bg2 {[%clk 0:03:00]}  Nbd7 {[%clk 0:02:56]} 7. O-O {[%clk 0:03:00]}  e5 {[%clk 0:02:57]} 8. e4 {[%clk 0:03:00]}  exd4 {[%clk 0:02:55]} 9. Nxd4 {[%clk 0:03:00]}  Re8 {[%clk 0:02:56]} 10. h3 {[%clk 0:02:59]}  Nc5 {[%clk 0:02:56]} 11. Re1 {[%clk 0:02:59]}  Bd7 {[%clk 0:02:56]} 12. Kh2 {[%clk 0:02:48]}  h6 {[%clk 0:02:52]} 13. Rb1 {[%clk 0:02:35]}  a5 {[%clk 0:02:52]} 14. b3 {[%clk 0:02:32]}  c6 {[%clk 0:02:50]} 15. Bf4 {[%clk 0:02:28]}  Qc7 {[%clk 0:02:28]} 16. Nc2 {[%clk 0:02:14]}  Re6 {[%clk 0:02:07]} 17. Nd4 {[%clk 0:02:03]}  Ree8 {[%clk 0:02:06]} 18. Qc2 {[%clk 0:02:00]}  Ng4+ {[%clk 0:01:54]} 19. hxg4 {[%clk 0:01:58]}  Bxd4 {[%clk 0:01:55]} 20. Rbd1 {[%clk 0:01:37]}  Be5 {[%clk 0:01:54]} 21. Bxh6 {[%clk 0:01:34]}  Bxg4 {[%clk 0:01:53]} 22. f3 {[%clk 0:01:34]}  Bd7 {[%clk 0:01:41]} 23. f4 {[%clk 0:01:33]}  Bh8 {[%clk 0:01:36]} 24. Qd2 {[%clk 0:01:15]}  Bg4 {[%clk 0:01:23]} 25. Rc1 {[%clk 0:01:01]}  f6 {[%clk 0:01:02]} 26. Rh1 {[%clk 0:01:00]}  Ne6 {[%clk 0:00:33]} 27. Kg1 {[%clk 0:00:57]}  Qb6+ {[%clk 0:00:24]} 28. Qf2 {[%clk 0:00:57]}  Qxf2+ {[%clk 0:00:24]} 29. Kxf2 {[%clk 0:00:58]}  Rad8 {[%clk 0:00:24]} 30. f5 {[%clk 0:00:26]}  gxf5 {[%clk 0:00:20]} 31. Bh3 {[%clk 0:00:22]}  Bxh3 {[%clk 0:00:18]} 32. Rxh3 {[%clk 0:00:23]}  Nc5 {[%clk 0:00:14]} 33. exf5 {[%clk 0:00:20]}  Nd3+ {[%clk 0:00:14]} 34. Kf3 {[%clk 0:00:20]}  Nxc1 {[%clk 0:00:14]} 35. Ne4 {[%clk 0:00:21]}  Nd3 {[%clk 0:00:12]} 36. Bf4 {[%clk 0:00:18]}  Ne5+ {[%clk 0:00:13]} 37. Kg2 {[%clk 0:00:16]}  d5 {[%clk 0:00:13]} 38. Nc5 {[%clk 0:00:16]}  d4 {[%clk 0:00:10]} 39. Ne6 {[%clk 0:00:15]}  Rd6 {[%clk 0:00:11]} 40. Rh6 {[%clk 0:00:13]}  Bg7 {[%clk 0:00:09]} 41. Rh1 {[%clk 0:00:10]}  d3 {[%clk 0:00:09]} 42. Bd2 {[%clk 0:00:09]}  Kf7 {[%clk 0:00:07]} 43. Re1 {[%clk 0:00:09]}  Rdxe6 {[%clk 0:00:05]} 44. fxe6+ {[%clk 0:00:09]}  Rxe6 {[%clk 0:00:06]} 45. Re4 {[%clk 0:00:09]}  Kg6 {[%clk 0:00:06]} 46. g4 {[%clk 0:00:09]}  Bh6 {[%clk 0:00:06]} 47. Bc3 {[%clk 0:00:09]}  d2 {[%clk 0:00:06]} 48. Rd4 {[%clk 0:00:09]}  c5 {[%clk 0:00:04]} 49. Rd5 {[%clk 0:00:10]}  Re7 {[%clk 0:00:03]} 50. Bxd2 {[%clk 0:00:10]}  Rd7 {[%clk 0:00:03]} 51. g5 {[%clk 0:00:06]}  Rxd5 {[%clk 0:00:02]} 52. cxd5 {[%clk 0:00:06]}  Bxg5 {[%clk 0:00:02]} 53. Bc3 {[%clk 0:00:07]}  Kf5 {[%clk 0:00:02]} 54. Kf2 {[%clk 0:00:06]}  Ke4 {[%clk 0:00:03]} 55. d6 {[%clk 0:00:06]}  Nd7 {[%clk 0:00:03]} 56. Bxa5 {[%clk 0:00:07]}  Bf4 {[%clk 0:00:04]} 57. Bc7 {[%clk 0:00:07]}  Kd5 {[%clk 0:00:04]} 58. Kf3 {[%clk 0:00:08]}  Bxd6 {[%clk 0:00:05]} 59. Bd8 {[%clk 0:00:08]}  f5 {[%clk 0:00:04]} 60. Ke3 {[%clk 0:00:09]}  Nf8 {[%clk 0:00:04]} 61. Bf6 {[%clk 0:00:09]}  Ne6 {[%clk 0:00:04]} 62. Kd3 {[%clk 0:00:09]}  b5 {[%clk 0:00:04]} 63. a4 {[%clk 0:00:09]}  c4+ {[%clk 0:00:05]} 64. Kc3 {[%clk 0:00:10]}  bxa4 {[%clk 0:00:05]} 65. bxa4 {[%clk 0:00:10]}  f4 {[%clk 0:00:04]} 66. a5 {[%clk 0:00:10]}  f3 {[%clk 0:00:04]} 67. Bh4 {[%clk 0:00:10]}  Bc5 {[%clk 0:00:05]} 68. a6 {[%clk 0:00:11]}  f2 {[%clk 0:00:05]} 0-1


[Site "https://www.chess.com"]

[Event "Titled Tuesday Blitz July 20 2021"]
[White "Melikhov, Evgeny V."]
[Black "Shevelev, Dmitri"]
[WhiteFideId "4122046"]
[BlackFideId "2802627"]
[WhiteElo "1965"]
[BlackElo "2262"]
[Result "1-0"]
[Round "09"]
[TimeControl "180+1"]
[Date "2021.07.21"]
[WhiteClock "0:00:21"]
[BlackClock "0:00:12"]

1. d4 {[%clk 0:03:00]}  g6 {[%clk 0:02:59]} 2. c4 {[%clk 0:02:59]}  Bg7 {[%clk 0:03:00]} 3. Nc3 {[%clk 0:02:59]}  c5 {[%clk 0:03:01]} 4. d5 {[%clk 0:02:59]}  Nf6 {[%clk 0:03:01]} 5. e4 {[%clk 0:02:58]}  d6 {[%clk 0:03:02]} 6. h3 {[%clk 0:02:57]}  O-O {[%clk 0:03:02]} 7. Nf3 {[%clk 0:02:57]}  b5 {[%clk 0:03:03]} 8. cxb5 {[%clk 0:02:49]}  a6 {[%clk 0:03:03]} 9. b6 {[%clk 0:02:47]}  Qxb6 {[%clk 0:02:58]} 10. a4 {[%clk 0:02:44]}  Re8 {[%clk 0:02:48]} 11. a5 {[%clk 0:02:44]}  Qb4 {[%clk 0:02:48]} 12. Ra4 {[%clk 0:02:43]}  Qb7 {[%clk 0:02:49]} 13. Be2 {[%clk 0:02:39]}  Bd7 {[%clk 0:02:49]} 14. Ra3 {[%clk 0:02:38]}  Bb5 {[%clk 0:02:49]} 15. O-O {[%clk 0:02:22]}  Nbd7 {[%clk 0:02:49]} 16. Re1 {[%clk 0:02:19]}  Reb8 {[%clk 0:02:42]} 17. Nd2 {[%clk 0:02:13]}  Ne8 {[%clk 0:02:31]} 18. Rb3 {[%clk 0:01:49]}  Qc7 {[%clk 0:01:51]} 19. Nxb5 {[%clk 0:01:38]}  axb5 {[%clk 0:01:51]} 20. Rxb5 {[%clk 0:01:32]}  Rxa5 {[%clk 0:01:21]} 21. Rxb8 {[%clk 0:01:31]}  Qxb8 {[%clk 0:01:16]} 22. Qb3 {[%clk 0:01:22]}  Ra1 {[%clk 0:00:57]} 23. Qxb8 {[%clk 0:01:16]}  Nxb8 {[%clk 0:00:58]} 24. Nb3 {[%clk 0:01:13]}  Ra7 {[%clk 0:00:53]} 25. Bd2 {[%clk 0:01:05]}  Rb7 {[%clk 0:00:40]} 26. Bc4 {[%clk 0:00:59]}  Bxb2 {[%clk 0:00:35]} 27. Na5 {[%clk 0:00:59]}  Ra7 {[%clk 0:00:22]} 28. Rb1 {[%clk 0:00:58]}  Nd7 {[%clk 0:00:10]} 29. Rxb2 {[%clk 0:00:58]}  Ne5 {[%clk 0:00:11]} 30. Be2 {[%clk 0:00:56]}  f5 {[%clk 0:00:11]} 31. exf5 {[%clk 0:00:54]}  gxf5 {[%clk 0:00:11]} 32. Rb7 {[%clk 0:00:54]}  Rxb7 {[%clk 0:00:11]} 33. Nxb7 {[%clk 0:00:53]}  Nf6 {[%clk 0:00:11]} 34. f4 {[%clk 0:00:50]}  Ng6 {[%clk 0:00:11]} 35. g3 {[%clk 0:00:45]}  Nxd5 {[%clk 0:00:10]} 36. Bc4 {[%clk 0:00:45]}  e6 {[%clk 0:00:11]} 37. Nxd6 {[%clk 0:00:45]}  Nge7 {[%clk 0:00:10]} 38. Ba5 {[%clk 0:00:37]}  Kg7 {[%clk 0:00:09]} 39. Bd8 {[%clk 0:00:36]}  Ne3 {[%clk 0:00:04]} 40. Bxe6 {[%clk 0:00:34]}  Nc6 {[%clk 0:00:02]} 41. Bb6 {[%clk 0:00:30]}  Nd4 {[%clk 0:00:02]} 42. Bxc5 {[%clk 0:00:28]}  Nxe6 {[%clk 0:00:02]} 43. Bxe3 {[%clk 0:00:28]}  h5 {[%clk 0:00:03]} 44. Kg2 {[%clk 0:00:27]}  Kf6 {[%clk 0:00:04]} 45. Kf3 {[%clk 0:00:27]}  Ng7 {[%clk 0:00:04]} 46. Bd4+ {[%clk 0:00:26]}  Kg6 {[%clk 0:00:04]} 47. Bxg7 {[%clk 0:00:26]}  Kxg7 {[%clk 0:00:05]} 48. Nxf5+ {[%clk 0:00:26]}  Kf6 {[%clk 0:00:06]} 49. g4 {[%clk 0:00:26]}  h4 {[%clk 0:00:07]} 50. Ke4 {[%clk 0:00:26]}  Kf7 {[%clk 0:00:08]} 51. g5 {[%clk 0:00:26]}  Kg6 {[%clk 0:00:08]} 52. Nxh4+ {[%clk 0:00:26]}  Kh5 {[%clk 0:00:09]} 53. Nf3 {[%clk 0:00:25]}  Kg6 {[%clk 0:00:10]} 54. f5+ {[%clk 0:00:25]}  Kh5 {[%clk 0:00:11]} 55. f6 {[%clk 0:00:22]}  Kg6 {[%clk 0:00:11]} 56. Ke5 {[%clk 0:00:22]}  Kh5 {[%clk 0:00:10]} 57. f7 {[%clk 0:00:22]}  Kg6 {[%clk 0:00:11]} 58. f8=Q {[%clk 0:00:21]}  Kh5 {[%clk 0:00:12]} 59. Qh6# {[%clk 0:00:21]} 1-0


[Site "https://www.chess.com"]

[Event "Titled Tuesday Blitz July 20 2021"]
[White "Mokshanov, Alexey"]
[Black "Najdin, Danil"]
[WhiteFideId "24121657"]
[BlackFideId "4172426"]
[WhiteElo "2262"]
[BlackElo "2193"]
[Result "1-0"]
[Round "09"]
[TimeControl "180+1"]
[Date "2021.07.21"]
[WhiteClock "0:00:31"]
[BlackClock "0:00:03"]

1. e4 {[%clk 0:02:54]}  e5 {[%clk 0:00:57]} 2. Nf3 {[%clk 0:02:52]}  Nc6 {[%clk 0:00:55]} 3. d4 {[%clk 0:02:52]}  exd4 {[%clk 0:00:55]} 4. Nxd4 {[%clk 0:02:52]}  Nf6 {[%clk 0:00:56]} 5. Nxc6 {[%clk 0:02:52]}  bxc6 {[%clk 0:00:57]} 6. e5 {[%clk 0:02:52]}  Qe7 {[%clk 0:00:57]} 7. Qe2 {[%clk 0:02:52]}  Nd5 {[%clk 0:00:58]} 8. c4 {[%clk 0:02:53]}  Nb6 {[%clk 0:00:58]} 9. Nc3 {[%clk 0:02:52]}  d6 {[%clk 0:00:58]} 10. Bf4 {[%clk 0:02:41]}  dxe5 {[%clk 0:00:56]} 11. Qxe5 {[%clk 0:02:34]}  Qxe5+ {[%clk 0:00:55]} 12. Bxe5 {[%clk 0:02:34]}  Be6 {[%clk 0:00:55]} 13. b3 {[%clk 0:02:29]}  O-O-O {[%clk 0:00:55]} 14. Be2 {[%clk 0:01:49]}  f6 {[%clk 0:00:55]} 15. Bf4 {[%clk 0:01:49]}  Bb4 {[%clk 0:00:55]} 16. Rc1 {[%clk 0:01:47]}  Ba3 {[%clk 0:00:45]} 17. Rd1 {[%clk 0:01:43]}  Bb4 {[%clk 0:00:42]} 18. Rc1 {[%clk 0:01:42]}  Ba3 {[%clk 0:00:42]} 19. Rd1 {[%clk 0:01:43]}  Bb4 {[%clk 0:00:39]} 20. Bd2 {[%clk 0:01:43]}  Bf5 {[%clk 0:00:37]} 21. Ne4 {[%clk 0:01:35]}  Bxd2+ {[%clk 0:00:29]} 22. Nxd2 {[%clk 0:01:34]}  Rhe8 {[%clk 0:00:26]} 23. Nf3 {[%clk 0:01:30]}  Rxd1+ {[%clk 0:00:15]} 24. Kxd1 {[%clk 0:01:30]}  Nd7 {[%clk 0:00:15]} 25. Nd4 {[%clk 0:01:22]}  Bb1 {[%clk 0:00:15]} 26. Kd2 {[%clk 0:01:03]}  Bxa2 {[%clk 0:00:13]} 27. Ra1 {[%clk 0:01:02]}  c5 {[%clk 0:00:14]} 28. Nc6 {[%clk 0:00:42]}  Bxb3 {[%clk 0:00:14]} 29. Rxa7 {[%clk 0:00:42]}  Nb6 {[%clk 0:00:13]} 30. Bg4+ {[%clk 0:00:42]}  f5 {[%clk 0:00:09]} 31. Bxf5+ {[%clk 0:00:42]}  Nd7 {[%clk 0:00:06]} 32. Na5 {[%clk 0:00:33]}  Kb8 {[%clk 0:00:03]} 33. Rb7+ {[%clk 0:00:33]}  Kc8 {[%clk 0:00:03]} 34. Rxb3 {[%clk 0:00:31]} 1-0


[Site "https://www.chess.com"]

[Event "Titled Tuesday Blitz July 20 2021"]
[White "Obolentseva, Alexandra"]
[Black "Shubenkova, Veronika"]
[WhiteFideId "24153648"]
[BlackFideId "44124040"]
[WhiteElo "2113"]
[BlackElo "1895"]
[Result "0-1"]
[Round "09"]
[TimeControl "180+1"]
[Date "2021.07.21"]
[WhiteClock "0:00:05"]
[BlackClock "0:00:51"]

1. d4 {[%clk 0:02:56]}  d5 {[%clk 0:02:59]} 2. c4 {[%clk 0:02:54]}  e6 {[%clk 0:02:59]} 3. Nc3 {[%clk 0:02:53]}  f5 {[%clk 0:03:00]} 4. Nf3 {[%clk 0:02:46]}  Nf6 {[%clk 0:02:59]} 5. Bf4 {[%clk 0:02:33]}  c6 {[%clk 0:02:57]} 6. e3 {[%clk 0:02:28]}  Bd6 {[%clk 0:02:57]} 7. Bd3 {[%clk 0:02:26]}  O-O {[%clk 0:02:57]} 8. O-O {[%clk 0:02:24]}  Ne4 {[%clk 0:02:57]} 9. Be5 {[%clk 0:02:16]}  Bxe5 {[%clk 0:02:56]} 10. Nxe5 {[%clk 0:02:17]}  Nd7 {[%clk 0:02:56]} 11. Nxd7 {[%clk 0:02:10]}  Bxd7 {[%clk 0:02:56]} 12. f3 {[%clk 0:02:10]}  Nd6 {[%clk 0:02:56]} 13. c5 {[%clk 0:02:08]}  Ne8 {[%clk 0:02:56]} 14. Qc2 {[%clk 0:02:07]}  Nf6 {[%clk 0:02:56]} 15. e4 {[%clk 0:02:03]}  dxe4 {[%clk 0:02:55]} 16. fxe4 {[%clk 0:02:04]}  Be8 {[%clk 0:02:56]} 17. exf5 {[%clk 0:01:54]}  Qxd4+ {[%clk 0:02:55]} 18. Kh1 {[%clk 0:01:54]}  exf5 {[%clk 0:02:54]} 19. Ne2 {[%clk 0:01:31]}  Qh4 {[%clk 0:02:52]} 20. Bxf5 {[%clk 0:01:29]}  Bf7 {[%clk 0:02:50]} 21. Rf4 {[%clk 0:01:26]}  Qh6 {[%clk 0:02:49]} 22. Raf1 {[%clk 0:01:25]}  Rae8 {[%clk 0:02:49]} 23. Ng3 {[%clk 0:01:21]}  Bd5 {[%clk 0:02:46]} 24. Kg1 {[%clk 0:01:18]}  Re7 {[%clk 0:02:30]} 25. Qc3 {[%clk 0:01:08]}  Rfe8 {[%clk 0:02:28]} 26. Bb1 {[%clk 0:01:07]}  Re3 {[%clk 0:02:25]} 27. Qd2 {[%clk 0:01:03]}  R3e6 {[%clk 0:02:14]} 28. Qf2 {[%clk 0:00:58]}  Nd7 {[%clk 0:01:57]} 29. Nf5 {[%clk 0:00:51]}  Qg5 {[%clk 0:01:57]} 30. Nd6 {[%clk 0:00:48]}  Re2 {[%clk 0:01:51]} 31. Nxe8 {[%clk 0:00:25]}  Rxf2 {[%clk 0:01:48]} 32. R4xf2 {[%clk 0:00:24]}  Qe3 {[%clk 0:01:43]} 33. Nd6 {[%clk 0:00:22]}  Nf6 {[%clk 0:01:43]} 34. Kh1 {[%clk 0:00:21]}  Qxc5 {[%clk 0:01:33]} 35. Nf5 {[%clk 0:00:17]}  Ng4 {[%clk 0:01:28]} 36. Re2 {[%clk 0:00:18]}  Nf6 {[%clk 0:01:13]} 37. Ne7+ {[%clk 0:00:16]}  Kf7 {[%clk 0:01:13]} 38. Nxd5 {[%clk 0:00:16]}  cxd5 {[%clk 0:01:12]} 39. Rfe1 {[%clk 0:00:12]}  Qd6 {[%clk 0:01:09]} 40. Rd2 {[%clk 0:00:11]}  Ng4 {[%clk 0:01:06]} 41. g3 {[%clk 0:00:11]}  h6 {[%clk 0:01:04]} 42. Be4 {[%clk 0:00:10]}  Nf6 {[%clk 0:01:03]} 43. Bg2 {[%clk 0:00:09]}  Qb4 {[%clk 0:01:00]} 44. Red1 {[%clk 0:00:09]}  Kg8 {[%clk 0:00:58]} 45. Bxd5+ {[%clk 0:00:10]}  Nxd5 {[%clk 0:00:58]} 46. Rxd5 {[%clk 0:00:11]}  Qxb2 {[%clk 0:00:59]} 47. Rf5 {[%clk 0:00:10]}  Qxa2 {[%clk 0:00:57]} 48. Rdf1 {[%clk 0:00:09]}  Qe6 {[%clk 0:00:56]} 49. Rf8+ {[%clk 0:00:09]}  Kh7 {[%clk 0:00:56]} 50. R8f2 {[%clk 0:00:09]}  a5 {[%clk 0:00:55]} 51. Rd2 {[%clk 0:00:09]}  a4 {[%clk 0:00:55]} 52. Rfd1 {[%clk 0:00:09]}  a3 {[%clk 0:00:55]} 53. Ra1 {[%clk 0:00:09]}  Qc6+ {[%clk 0:00:53]} 54. Rg2 {[%clk 0:00:08]}  Qc3 {[%clk 0:00:52]} 55. Raa2 {[%clk 0:00:08]}  b5 {[%clk 0:00:52]} 56. Rgc2 {[%clk 0:00:07]}  Qf3+ {[%clk 0:00:52]} 57. Kg1 {[%clk 0:00:07]}  b4 {[%clk 0:00:52]} 58. Rf2 {[%clk 0:00:08]}  Qe3 {[%clk 0:00:52]} 59. Re2 {[%clk 0:00:07]}  Qc5 {[%clk 0:00:51]} 60. Kg2 {[%clk 0:00:06]}  b3 {[%clk 0:00:52]} 61. Rf7 {[%clk 0:00:05]}  a2 {[%clk 0:00:51]} 62. Ree7 {[%clk 0:00:05]}  Qd5+ {[%clk 0:00:51]} 63. Kh3 {[%clk 0:00:05]}  a1=Q {[%clk 0:00:51]} 0-1


[Site "https://www.chess.com"]

[Event "Titled Tuesday Blitz July 20 2021"]
[White "Plotnikov, Pavel"]
[Black "Ivanov, Mike"]
[WhiteFideId "4170342"]
[BlackFideId "2613158"]
[WhiteElo "2298"]
[BlackElo "2197"]
[Result "0-1"]
[Round "09"]
[TimeControl "180+1"]
[Date "2021.07.21"]
[WhiteClock "0:00:18"]
[BlackClock "0:00:09"]

1. e4 {[%clk 0:03:00]}  e6 {[%clk 0:02:59]} 2. d3 {[%clk 0:03:00]}  d5 {[%clk 0:03:00]} 3. Nd2 {[%clk 0:03:00]}  a5 {[%clk 0:03:00]} 4. Ngf3 {[%clk 0:03:00]}  a4 {[%clk 0:03:00]} 5. a3 {[%clk 0:02:58]}  Nf6 {[%clk 0:03:00]} 6. g3 {[%clk 0:02:58]}  Be7 {[%clk 0:02:58]} 7. Bg2 {[%clk 0:02:57]}  O-O {[%clk 0:02:58]} 8. O-O {[%clk 0:02:57]}  c5 {[%clk 0:02:55]} 9. e5 {[%clk 0:02:57]}  Nfd7 {[%clk 0:02:55]} 10. Re1 {[%clk 0:02:58]}  Nc6 {[%clk 0:02:55]} 11. Nf1 {[%clk 0:02:58]}  Rb8 {[%clk 0:02:27]} 12. h4 {[%clk 0:02:55]}  b5 {[%clk 0:02:14]} 13. N1h2 {[%clk 0:02:53]}  b4 {[%clk 0:02:07]} 14. Bf4 {[%clk 0:02:49]}  bxa3 {[%clk 0:01:55]} 15. bxa3 {[%clk 0:02:48]}  c4 {[%clk 0:01:44]} 16. d4 {[%clk 0:02:38]}  Rb2 {[%clk 0:01:40]} 17. Qc1 {[%clk 0:02:37]}  Qb6 {[%clk 0:01:36]} 18. Rd1 {[%clk 0:02:33]}  c3 {[%clk 0:01:33]} 19. Ng4 {[%clk 0:02:31]}  f5 {[%clk 0:01:05]} 20. exf6 {[%clk 0:02:28]}  Nxf6 {[%clk 0:01:00]} 21. Nge5 {[%clk 0:02:18]}  Ne4 {[%clk 0:00:48]} 22. Nxc6 {[%clk 0:02:14]}  Qxc6 {[%clk 0:00:49]} 23. Ne5 {[%clk 0:02:12]}  Qa6 {[%clk 0:00:46]} 24. Rd3 {[%clk 0:02:04]}  Bf6 {[%clk 0:00:30]} 25. f3 {[%clk 0:01:37]}  Nd6 {[%clk 0:00:30]} 26. Rxc3 {[%clk 0:01:36]}  Rb6 {[%clk 0:00:29]} 27. Bf1 {[%clk 0:01:29]}  Qa8 {[%clk 0:00:26]} 28. Qd2 {[%clk 0:01:20]}  Nf5 {[%clk 0:00:25]} 29. Re1 {[%clk 0:01:11]}  Qa7 {[%clk 0:00:22]} 30. Kh2 {[%clk 0:00:59]}  Rb2 {[%clk 0:00:21]} 31. Nc6 {[%clk 0:00:55]}  Qb6 {[%clk 0:00:20]} 32. Be5 {[%clk 0:00:52]}  Bxe5 {[%clk 0:00:16]} 33. Rxe5 {[%clk 0:00:44]}  Bd7 {[%clk 0:00:16]} 34. Nb4 {[%clk 0:00:19]}  Nxd4 {[%clk 0:00:16]} 35. Qc1 {[%clk 0:00:19]}  Rxb4 {[%clk 0:00:11]} 36. axb4 {[%clk 0:00:18]}  Nxf3+ {[%clk 0:00:11]} 37. Rxf3 {[%clk 0:00:19]}  Rxf3 {[%clk 0:00:11]} 38. Bg2 {[%clk 0:00:19]}  Qf2 {[%clk 0:00:09]} 39. Qd1 {[%clk 0:00:18]}  Qxg3+ {[%clk 0:00:09]} 40. Kg1 {[%clk 0:00:18]}  Rf2 {[%clk 0:00:08]} 41. Rg5 {[%clk 0:00:18]}  Rxg2+ {[%clk 0:00:08]} 42. Kf1 {[%clk 0:00:18]}  Qf2# {[%clk 0:00:09]} 0-1


[Site "https://www.chess.com"]

[Event "Titled Tuesday Blitz July 20 2021"]
[White "Primbetov, Kazbek"]
[Black "Borsuk, Konstantin"]
[WhiteFideId "13702297"]
[BlackFideId "14113406"]
[WhiteElo "2184"]
[BlackElo "2363"]
[Result "0-1"]
[Round "09"]
[TimeControl "180+1"]
[Date "2021.07.21"]
[WhiteClock "0:00:36"]
[BlackClock "0:01:15"]

1. f4 {[%clk 0:03:00]}  c5 {[%clk 0:02:57]} 2. Nf3 {[%clk 0:03:00]}  d5 {[%clk 0:02:56]} 3. b3 {[%clk 0:03:00]}  g6 {[%clk 0:02:54]} 4. Bb2 {[%clk 0:03:00]}  Nf6 {[%clk 0:02:55]} 5. e3 {[%clk 0:03:01]}  Bg7 {[%clk 0:02:54]} 6. Be2 {[%clk 0:03:00]}  Nc6 {[%clk 0:02:52]} 7. O-O {[%clk 0:02:59]}  a6 {[%clk 0:02:51]} 8. Ne5 {[%clk 0:02:53]}  Qc7 {[%clk 0:02:48]} 9. c4 {[%clk 0:02:50]}  dxc4 {[%clk 0:02:47]} 10. Bxc4 {[%clk 0:02:31]}  O-O {[%clk 0:02:46]} 11. Qf3 {[%clk 0:02:24]}  Nb4 {[%clk 0:02:36]} 12. Nc3 {[%clk 0:02:11]}  Bf5 {[%clk 0:02:33]} 13. a3 {[%clk 0:01:58]}  Nc6 {[%clk 0:02:26]} 14. Nxc6 {[%clk 0:01:58]}  bxc6 {[%clk 0:02:26]} 15. e4 {[%clk 0:01:47]}  Nxe4 {[%clk 0:02:23]} 16. Nxe4 {[%clk 0:01:38]}  Bxb2 {[%clk 0:02:22]} 17. Rae1 {[%clk 0:01:35]}  Bxa3 {[%clk 0:02:10]} 18. Ng5 {[%clk 0:01:31]}  Qd7 {[%clk 0:01:54]} 19. h3 {[%clk 0:01:24]}  Rad8 {[%clk 0:01:48]} 20. g4 {[%clk 0:01:24]}  Bd3 {[%clk 0:01:48]} 21. Bxd3 {[%clk 0:00:42]}  Qxd3 {[%clk 0:01:47]} 22. Re3 {[%clk 0:00:43]}  Qxd2 {[%clk 0:01:39]} 23. f5 {[%clk 0:00:42]}  Bb2 {[%clk 0:01:17]} 24. Re2 {[%clk 0:00:36]}  Bd4+ {[%clk 0:01:15]} 25. Kh1 {[%clk 0:00:36]}  Qxg5 {[%clk 0:01:15]} 0-1


[Site "https://www.chess.com"]

[Event "Titled Tuesday Blitz July 20 2021"]
[White "Quparadze, Giga"]
[Black "Asadli, Vugar"]
[WhiteFideId "13602250"]
[BlackFideId "13405764"]
[WhiteElo "2658"]
[BlackElo "2386"]
[Result "1-0"]
[Round "09"]
[TimeControl "180+1"]
[Date "2021.07.20"]
[WhiteClock "0:00:38"]
[BlackClock "0:00:30"]

1. e4 {[%clk 0:03:00]}  c6 {[%clk 0:02:59]} 2. d4 {[%clk 0:03:00]}  d5 {[%clk 0:03:00]} 3. Nc3 {[%clk 0:03:01]}  dxe4 {[%clk 0:03:00]} 4. Nxe4 {[%clk 0:03:02]}  Nf6 {[%clk 0:03:00]} 5. Nxf6+ {[%clk 0:03:02]}  exf6 {[%clk 0:03:00]} 6. c3 {[%clk 0:03:03]}  Bd6 {[%clk 0:03:00]} 7. Bd3 {[%clk 0:03:03]}  O-O {[%clk 0:02:59]} 8. Qc2 {[%clk 0:03:04]}  Re8+ {[%clk 0:02:59]} 9. Ne2 {[%clk 0:03:04]}  h5 {[%clk 0:03:00]} 10. O-O {[%clk 0:03:04]}  h4 {[%clk 0:03:00]} 11. h3 {[%clk 0:03:05]}  Nd7 {[%clk 0:02:58]} 12. Be3 {[%clk 0:03:04]}  Nf8 {[%clk 0:02:55]} 13. c4 {[%clk 0:03:01]}  Ne6 {[%clk 0:02:37]} 14. Rfe1 {[%clk 0:02:51]}  Ng5 {[%clk 0:02:33]} 15. Bf5 {[%clk 0:02:47]}  Bxf5 {[%clk 0:02:18]} 16. Qxf5 {[%clk 0:02:48]}  g6 {[%clk 0:02:17]} 17. Qd3 {[%clk 0:02:44]}  f5 {[%clk 0:02:13]} 18. Rad1 {[%clk 0:02:11]}  Ne4 {[%clk 0:02:04]} 19. Bf4 {[%clk 0:02:07]}  Bxf4 {[%clk 0:01:56]} 20. Nxf4 {[%clk 0:02:08]}  Qa5 {[%clk 0:01:52]} 21. a3 {[%clk 0:02:02]}  Rad8 {[%clk 0:01:51]} 22. d5 {[%clk 0:01:58]}  Qc7 {[%clk 0:01:42]} 23. Qe3 {[%clk 0:01:46]}  cxd5 {[%clk 0:01:30]} 24. cxd5 {[%clk 0:01:42]}  Qc2 {[%clk 0:01:28]} 25. Qd4 {[%clk 0:01:36]}  Nd6 {[%clk 0:01:21]} 26. Rc1 {[%clk 0:01:34]}  Re4 {[%clk 0:01:16]} 27. Qf6 {[%clk 0:01:27]}  Rxe1+ {[%clk 0:01:01]} 28. Rxe1 {[%clk 0:01:28]}  Qc7 {[%clk 0:01:01]} 29. Qxh4 {[%clk 0:00:50]}  Ne4 {[%clk 0:00:57]} 30. Qh6 {[%clk 0:00:49]}  Qb6 {[%clk 0:00:52]} 31. Rf1 {[%clk 0:00:44]}  Rc8 {[%clk 0:00:50]} 32. Ne6 {[%clk 0:00:43]}  fxe6 {[%clk 0:00:38]} 33. Qxg6+ {[%clk 0:00:42]}  Kf8 {[%clk 0:00:34]} 34. dxe6 {[%clk 0:00:42]}  Nd6 {[%clk 0:00:34]} 35. Re1 {[%clk 0:00:40]}  Ke7 {[%clk 0:00:33]} 36. Qg7+ {[%clk 0:00:40]}  Ke8 {[%clk 0:00:33]} 37. Qd7+ {[%clk 0:00:38]}  Kf8 {[%clk 0:00:30]} 38. e7+ {[%clk 0:00:38]} 1-0


[Site "https://www.chess.com"]

[Event "Titled Tuesday Blitz July 20 2021"]
[White "Rorrer, Grayson"]
[Black "Gontcharov, Vladislav"]
[WhiteFideId "30944996"]
[BlackFideId "4123492"]
[WhiteElo "2122"]
[BlackElo "2503"]
[Result "0-1"]
[Round "09"]
[TimeControl "180+1"]
[Date "2021.07.21"]
[WhiteClock "0:00:08"]
[BlackClock "0:00:21"]

1. e4 {[%clk 0:03:00]}  e6 {[%clk 0:02:54]} 2. d4 {[%clk 0:03:01]}  d5 {[%clk 0:02:50]} 3. Nd2 {[%clk 0:02:58]}  Be7 {[%clk 0:02:49]} 4. Ngf3 {[%clk 0:02:58]}  Nf6 {[%clk 0:02:49]} 5. e5 {[%clk 0:02:58]}  Nfd7 {[%clk 0:02:49]} 6. Bd3 {[%clk 0:02:59]}  c5 {[%clk 0:02:50]} 7. c3 {[%clk 0:02:59]}  Nc6 {[%clk 0:02:50]} 8. O-O {[%clk 0:02:59]}  g5 {[%clk 0:02:49]} 9. Qe2 {[%clk 0:02:55]}  g4 {[%clk 0:02:45]} 10. Ne1 {[%clk 0:02:55]}  cxd4 {[%clk 0:02:43]} 11. cxd4 {[%clk 0:02:55]}  Nxd4 {[%clk 0:02:35]} 12. Qxg4 {[%clk 0:02:55]}  Qb6 {[%clk 0:02:23]} 13. Nb1 {[%clk 0:02:29]}  h5 {[%clk 0:02:11]} 14. Qg7 {[%clk 0:02:23]}  Rf8 {[%clk 0:02:12]} 15. Nc3 {[%clk 0:02:18]}  a6 {[%clk 0:01:44]} 16. Be3 {[%clk 0:02:15]}  Qxb2 {[%clk 0:01:38]} 17. Bxd4 {[%clk 0:02:15]}  Qxa1 {[%clk 0:01:38]} 18. Nc2 {[%clk 0:02:14]}  Qb2 {[%clk 0:01:35]} 19. Rb1 {[%clk 0:02:08]}  Qxb1+ {[%clk 0:01:28]} 20. Nxb1 {[%clk 0:02:09]}  Nc5 {[%clk 0:01:26]} 21. Be2 {[%clk 0:01:46]}  Bd7 {[%clk 0:01:22]} 22. Qg3 {[%clk 0:01:45]}  h4 {[%clk 0:01:20]} 23. Qe3 {[%clk 0:01:33]}  Rc8 {[%clk 0:01:18]} 24. Nd2 {[%clk 0:01:18]}  Rg8 {[%clk 0:01:15]} 25. h3 {[%clk 0:01:07]}  Bg5 {[%clk 0:01:09]} 26. f4 {[%clk 0:01:07]}  Be7 {[%clk 0:01:07]} 27. Bf3 {[%clk 0:00:43]}  Rg3 {[%clk 0:01:04]} 28. Ne1 {[%clk 0:00:40]}  Bb5 {[%clk 0:01:02]} 29. Nf1 {[%clk 0:00:35]}  Rg8 {[%clk 0:00:59]} 30. Be2 {[%clk 0:00:32]}  Bxe2 {[%clk 0:00:49]} 31. Qxe2 {[%clk 0:00:33]}  Ne4 {[%clk 0:00:49]} 32. Qb2 {[%clk 0:00:30]}  b5 {[%clk 0:00:47]} 33. a4 {[%clk 0:00:24]}  Rc4 {[%clk 0:00:46]} 34. Nf3 {[%clk 0:00:19]}  Rxa4 {[%clk 0:00:43]} 35. Ne3 {[%clk 0:00:17]}  Kd7 {[%clk 0:00:32]} 36. f5 {[%clk 0:00:15]}  Rc8 {[%clk 0:00:29]} 37. fxe6+ {[%clk 0:00:14]}  fxe6 {[%clk 0:00:28]} 38. Ng4 {[%clk 0:00:07]}  Rac4 {[%clk 0:00:21]} 39. Nf6+ {[%clk 0:00:08]}  Kd8 {[%clk 0:00:21]} 0-1


[Site "https://www.chess.com"]